[Event "HUN-ch U8-U18 2019"]
[Site "Balatonlelle"]
[Date "2019.06.24"]
[Round "4.2"]
[White "Nandin-Erdene, Davaademberel"]
[Black "Suli, Henrietta"]
[Result "1-0"]
[ECO "C54"]
[WhiteElo "1581"]
[BlackElo "1107"]
[Annotator "NA"]
[PlyCount "103"]
[EventDate "2019.06.21"]
[EventType "swiss"]
[EventCountry "HUN"]
[SourceTitle "playchess.com"]
[Source "ChessBase"]
[SourceQuality "1"]
[TimeControl "40/5400+30:1800+30"]

1. e4 {[%emt 0:00:02]} e5 {[%emt 0:00:08]} 2. Nf3 {[%emt 0:00:40]} Nc6 {[%emt 0:00:07]} 3. Bc4 {[%emt 0:00:05]} Bc5 {[%emt 0:00:06]} 4. c3 {[%emt 0:00:05]} Nf6 {[%emt 0:00:07]} 5. d4 {[%emt 0:00:05]} exd4 {[%emt 0:00:10]} 6. e5 {[%emt 0:00:09]} Ne4 {[%emt 0:03:22]} 7. Bd5 {[%emt 0:00:15]} f5 {[%emt 0:12:30]} 8. cxd4 {[%emt 0:31:23]} Bb4+ {[%emt 0:14:50]} 9. Nbd2 {[%emt 0:00:15]} Ne7 {[%emt 0:01:06]} 10. Bb3 {[%emt 0:00:48]} d5 {[%emt 0:04:53]} 11. O-O {[%emt 0:01:16]} O-O {[%emt 0:03:47]} 12. Nxe4 {[%emt 0:04:05]} fxe4 {[%emt 0:04:07]} 13. Nd2 {[%emt 0:06:57]} Bf5 {[%emt 0:04:44]} 14. Qe2 {[%emt 0:00:33]} Kh8 {[%emt 0:01:06]} 15. Qb5 {[%emt 0:04:32]} a5 {[%emt 0:04:13]} 16. a3 {[%emt 0:02:00]} Bd7 {[%emt 0:02:31]} 17. Qe2 {[%emt 0:00:16]} Bxd2 {[%emt 0:02:29]} 18. Bxd2 {[%emt 0:00:05]} Be6 {[%emt 0:03:10]} 19. f3 {[%emt 0:01:48]} Nf5 {[%emt 0:02:55]} 20. Bc3 {[%emt 0:01:40]} e3 {[%emt 0:04:07]} 21. Bc2 {[%emt 0:00:30]} Qg5 {[%emt 0:01:52]} 22. f4 {[%emt 0:03:40]} Qg6 {[%emt 0:03:30]} 23. Bxf5 {[%emt 0:01:44]} Rxf5 {[%emt 0:03:08]} 24. Qxe3 {[%emt 0:00:13]} Rh5 {[%emt 0:00:30]} 25. Qg3 {[%emt 0:02:28]} Qf5 {[%emt 0:02:49]} 26. Rac1 {[%emt 0:08:53]} Ra6 {[%emt 0:01:36]} 27. Qf3 {[%emt 0:05:48]} Bf7 {[%emt 0:00:44]} 28. Be1 {[%emt 0:02:15]} Rg6 {[%emt 0:01:03]} 29. Rxc7 {[%emt 0:04:43]} Rh3 {[%emt 0:00:18]} 30. Bg3 {[%emt 0:00:27]} Rhh6 {[%emt 0:01:36]} 31. Qd3 {[%emt 0:02:33]} Qxd3 {[%emt 0:00:32]} 32. Rc8+ {[%emt 0:00:12]} Bg8 {[%emt 0:00:05]} 33. f5 {[%emt 0:00:28]} Rxg3 {[%emt 0:01:21]} 34. hxg3 {[%emt 0:00:33]} Qxg3 {[%emt 0:00:06]} 35. Rf2 {[%emt 0:02:12]} Qe3 {[%emt 0:00:28]} 36. Rf8 {[%emt 0:02:23]} Rh4 {[%emt 0:00:28]} 37. f6 {[%emt 0:00:56]} Rf4 {[%emt 0:01:05]} 38. fxg7+ {[%emt 0:00:24]} Kxg7 {[%emt 0:00:07]} 39. R8xf4 {[%emt 0:00:04]} Be6 {[%emt 0:00:57]} 40. Rf6 {[%emt 0:00:00]} Bd7 {[%emt 0:00:00]} 41. Rf7+ {[%emt 0:01:40]} Kg6 {[%emt 0:01:15]} 42. Rxd7 {[%emt 0:03:00]} Qxd4 {[%emt 0:01:10]} 43. Rd6+ {[%emt 0:03:05]} Kg5 {[%emt 0:00:17]} 44. Rdf6 {[%emt 0:27:19]} Qxe5 {[%emt 0:00:59]} 45. Rf7 {[%emt 0:00:52]} h5 {[%emt 0:00:45]} 46. Rxb7 {[%emt 0:03:06]} Qd4 {[%emt 0:00:43]} 47. Rb3 {[%emt 0:00:55]} Qd1+ {[%emt 0:00:24]} 48. Kh2 {[%emt 0:00:43]} Qxb3 {[%emt 0:00:09]} 49. Rd2 {[%emt 0:00:07]} Kf4 {[%emt 0:01:50]} 50. Rf2+ {[%emt 0:00:38]} Ke3 {[%emt 0:01:30]} 51. Rf3+ {[%emt 0:00:10]} Kd2 {[%emt 0:01:33]} 52. Rxb3 {[%emt 0:00:08]} 1-0

[Event "HUN-ch U8-U18 2019"]
[Site "Balatonlelle"]
[Date "2019.06.24"]
[Round "4.3"]
[White "Juhasz, Judit"]
[Black "Lukacs, Anna Kata"]
[Result "0-1"]
[ECO "C03"]
[WhiteElo "1963"]
[BlackElo "1915"]
[Annotator "NA"]
[PlyCount "60"]
[EventDate "2019.06.21"]
[EventType "swiss"]
[EventCountry "HUN"]
[SourceTitle "playchess.com"]
[Source "ChessBase"]
[SourceQuality "1"]
[TimeControl "40/5400+30:1800+30"]

1. e4 {[%emt 0:00:03]} e6 {[%emt 0:00:08]} 2. d4 {[%emt 0:00:13]} d5 {[%emt 0:00:13]} 3. Nd2 {[%emt 0:00:14]} Be7 {[%emt 0:00:22]} 4. Bd3 {[%emt 0:00:10]} c5 {[%emt 0:00:13]} 5. exd5 {[%emt 0:04:04]} Qxd5 {[%emt 0:00:28]} 6. Ngf3 {[%emt 0:00:38]} cxd4 {[%emt 0:00:56]} 7. Bc4 {[%emt 0:02:44]} Qh5 {[%emt 0:03:15]} 8. Ne4 {[%emt 0:03:34]} Nc6 {[%emt 0:04:16]} 9. O-O {[%emt 0:07:14]} Nf6 {[%emt 0:04:31]} 10. Re1 {[%emt 0:17:17]} Nxe4 {[%emt 0:07:05]} 11. Rxe4 {[%emt 0:00:41]} Bf6 12. g4 {[%emt 0:24:55]} Qc5 {[%emt 0:07:38]} 13. g5 {[%emt 0:08:39]} Qxc4 {[%emt 0:05:23]} 14. gxf6 {[%emt 0:00:19]} gxf6 15. Nxd4 {[%emt 0:07:34]} Rg8+ {[%emt 0:02:46]} 16. Kh1 {[%emt 0:00:10]} Qd5 {[%emt 0:11:46]} 17. f3 {[%emt 0:08:05]} e5 {[%emt 0:01:10]} 18. Be3 Bh3 19. Qd2 {[%emt 0:05:29]} Bg2+ {[%emt 0:01:09]} 20. Qxg2 {[%emt 0:00:14]} Rxg2 {[%emt 0:00:08]} 21. Kxg2 {[%emt 0:00:06]} O-O-O {[%emt 0:01:22]} 22. Ne2 {[%emt 0:02:05]} Rg8+ {[%emt 0:01:04]} 23. Kf2 {[%emt 0:00:44]} f5 {[%emt 0:01:23]} 24. Nc3 {[%emt 0:02:01]} Qe6 {[%emt 0:02:30]} 25. Rh4 {[%emt 0:02:52]} Qg6 {[%emt 0:01:12]} 26. Ke1 Qg2 {[%emt 0:00:57]} 27. Rd1 {[%emt 0:01:49]} Qxf3 {[%emt 0:08:57]} 28. Bf2 Nd4 {[%emt 0:00:10]} 29. Bxd4 {[%emt 0:01:58]} exd4 {[%emt 0:00:58]} 30. Ne2 Rg2 0-1

[Event "HUN-ch U8-U18 2019"]
[Site "Balatonlelle"]
[Date "2019.06.24"]
[Round "4.3"]
[White "Kovacs, Reka"]
[Black "Deak-Sala, Emilia"]
[Result "1-0"]
[ECO "B38"]
[WhiteElo "1318"]
[BlackElo "1415"]
[Annotator "NA"]
[PlyCount "67"]
[EventDate "2019.06.21"]
[EventType "swiss"]
[EventCountry "HUN"]
[SourceTitle "playchess.com"]
[Source "ChessBase"]
[SourceQuality "1"]
[TimeControl "40/5400+30:1800+30"]

1. e4 {[%emt 0:00:03]} c5 {[%emt 0:00:04]} 2. Nf3 {[%emt 0:00:04]} Nc6 {[%emt 0:00:06]} 3. d4 {[%emt 0:00:09]} cxd4 {[%emt 0:00:06]} 4. Nxd4 {[%emt 0:00:09]} g6 {[%emt 0:00:05]} 5. c4 {[%emt 0:00:27]} Bg7 {[%emt 0:00:07]} 6. Be3 {[%emt 0:00:10]} Nf6 {[%emt 0:00:07]} 7. Nc3 {[%emt 0:00:13]} O-O {[%emt 0:00:30]} 8. Be2 {[%emt 0:00:10]} d6 {[%emt 0:00:13]} 9. O-O {[%emt 0:00:29]} Bd7 {[%emt 0:00:06]} 10. f3 {[%emt 0:00:22]} Nxd4 {[%emt 0:00:19]} 11. Bxd4 {[%emt 0:00:11]} Bc6 {[%emt 0:00:17]} 12. Qd2 {[%emt 0:00:25]} a5 {[%emt 0:02:21]} 13. b3 {[%emt 0:01:13]} a4 {[%emt 0:05:22]} 14. b4 {[%emt 0:01:47]} Bd7 {[%emt 0:06:23]} 15. Rac1 {[%emt 0:00:26]} Be6 {[%emt 0:04:28]} 16. Rfd1 {[%emt 0:00:43]} a3 {[%emt 0:04:24]} 17. Nb5 {[%emt 0:02:43]} Bd7 {[%emt 0:02:19]} 18. Nc3 {[%emt 0:04:51]} Be6 {[%emt 0:01:17]} 19. Bf1 {[%emt 0:01:41]} Nd7 {[%emt 0:10:54]} 20. Be3 {[%emt 0:02:17]} Ne5 {[%emt 0:02:00]} 21. Nb1 {[%emt 0:02:23]} Nd7 {[%emt 0:11:39]} 22. Nc3 {[%emt 0:02:24]} Ne5 {[%emt 0:01:07]} 23. Nb5 {[%emt 0:08:24]} Bd7 {[%emt 0:00:43]} 24. Nd4 {[%emt 0:06:09]} Nc6 {[%emt 0:03:15]} 25. Nb5 {[%emt 0:02:41]} Ra4 {[%emt 0:02:36]} 26. c5 {[%emt 0:02:01]} Rxb4 {[%emt 0:08:50]} 27. cxd6 {[%emt 0:02:08]} e6 {[%emt 0:00:44]} 28. Rxc6 {[%emt 0:00:58]} Rxb5 {[%emt 0:00:15]} 29. Bxb5 {[%emt 0:00:49]} bxc6 {[%emt 0:00:50]} 30. Bc4 {[%emt 0:00:36]} Qh4 {[%emt 0:02:39]} 31. Bg5 {[%emt 0:01:59]} Qh5 {[%emt 0:00:28]} 32. Be2 {[%emt 0:00:44]} Bc3 {[%emt 0:01:42]} 33. Qe3 {[%emt 0:01:13]} Bf6 {[%emt 0:00:49]} 34. f4 {[%emt 0:01:16]} 1-0

[Event "HUN-ch U8-U18 2019"]
[Site "Balatonlelle"]
[Date "2019.06.24"]
[Round "4.4"]
[White "Gabor, Maria"]
[Black "Toth, Lili"]
[Result "1-0"]
[ECO "C54"]
[WhiteElo "1308"]
[BlackElo "1523"]
[Annotator "NA"]
[PlyCount "89"]
[EventDate "2019.06.21"]
[EventType "swiss"]
[EventCountry "HUN"]
[SourceTitle "playchess.com"]
[Source "ChessBase"]
[SourceQuality "1"]
[TimeControl "40/5400+30:1800+30"]

1. e4 {[%emt 0:00:03]} e5 {[%emt 0:00:08]} 2. Nf3 {[%emt 0:00:16]} Nc6 {[%emt 0:00:10]} 3. Bc4 {[%emt 0:00:38]} Bc5 {[%emt 0:00:17]} 4. c3 {[%emt 0:00:55]} Nf6 {[%emt 0:00:49]} 5. d3 {[%emt 0:01:46]} d6 {[%emt 0:00:25]} 6. a4 {[%emt 0:01:18]} a5 {[%emt 0:04:04]} 7. Bg5 {[%emt 0:00:38]} h6 {[%emt 0:00:44]} 8. Be3 {[%emt 0:00:28]} Bxe3 {[%emt 0:02:35]} 9. fxe3 {[%emt 0:00:16]} Qe7 {[%emt 0:05:40]} 10. Nbd2 {[%emt 0:01:24]} Bd7 {[%emt 0:01:35]} 11. Qe2 {[%emt 0:03:07]} Bg4 {[%emt 0:02:40]} 12. Qf2 {[%emt 0:03:53]} Rd8 {[%emt 0:03:44]} 13. Qg3 {[%emt 0:09:40]} g6 {[%emt 0:03:15]} 14. O-O {[%emt 0:05:58]} Be6 {[%emt 0:04:36]} 15. Bxe6 {[%emt 0:02:06]} Qxe6 {[%emt 0:00:15]} 16. d4 {[%emt 0:02:23]} Nh5 {[%emt 0:14:05]} 17. Qh4 {[%emt 0:00:54]} Qe7 {[%emt 0:01:20]} 18. Qf2 {[%emt 0:02:34]} exd4 {[%emt 0:03:08]} 19. exd4 {[%emt 0:00:35]} O-O {[%emt 0:03:11]} 20. Qe3 {[%emt 0:02:53]} Kh7 {[%emt 0:02:18]} 21. Rf2 {[%emt 0:08:07]} f5 {[%emt 0:03:43]} 22. Re1 {[%emt 0:01:52]} Rfe8 {[%emt 0:01:34]} 23. Qd3 {[%emt 0:02:29]} fxe4 {[%emt 0:07:53]} 24. Nxe4 {[%emt 0:01:47]} Qd7 {[%emt 0:08:03]} 25. h3 {[%emt 0:02:41]} Nf4 {[%emt 0:06:03]} 26. Qd2 {[%emt 0:05:14]} Nh5 {[%emt 0:06:54]} 27. g4 {[%emt 0:00:19]} Rxe4 {[%emt 0:03:58]} 28. Rxe4 {[%emt 0:01:02]} Nf6 {[%emt 0:00:26]} 29. Rf4 {[%emt 0:01:14]} Rf8 {[%emt 0:02:02]} 30. g5 {[%emt 0:08:45]} hxg5 {[%emt 0:01:15]} 31. Nxg5+ {[%emt 0:00:08]} Kg7 {[%emt 0:00:25]} 32. d5 {[%emt 0:01:41]} Nd8 {[%emt 0:03:09]} 33. Qd4 {[%emt 0:01:00]} Qe7 {[%emt 0:00:29]} 34. Ne4 {[%emt 0:01:17]} c5 {[%emt 0:00:55]} 35. dxc6 {[%emt 0:00:47]} Nxc6 {[%emt 0:00:18]} 36. Qxd6 {[%emt 0:01:08]} Qxd6 {[%emt 0:00:11]} 37. Nxd6 {[%emt 0:00:07]} Nh7 {[%emt 0:01:16]} 38. Rxf8 {[%emt 0:01:52]} Nxf8 {[%emt 0:00:06]} 39. Rf7+ {[%emt 0:00:27]} Kg8 {[%emt 0:00:11]} 40. Rxb7 {[%emt 0:00:00]} Ne6 {[%emt 0:00:00]} 41. Rb6 {[%emt 0:02:20]} Ned8 {[%emt 0:00:27]} 42. Nb7 {[%emt 0:00:31]} Kf7 {[%emt 0:01:47]} 43. Nxd8+ {[%emt 0:00:17]} Nxd8 {[%emt 0:01:21]} 44. Ra6 {[%emt 0:00:12]} Ne6 {[%emt 0:01:22]} 45. Rxa5 {[%emt 0:00:13]} 1-0

[Event "HUN-ch U8-U18 2019"]
[Site "Balatonlelle"]
[Date "2019.06.24"]
[Round "4.5"]
[White "Ongut, Tamas Gunes"]
[Black "Karacsonyi, Gellert"]
[Result "1/2-1/2"]
[ECO "D61"]
[WhiteElo "2120"]
[BlackElo "2304"]
[Annotator "NA"]
[PlyCount "74"]
[EventDate "2019.06.21"]
[EventType "swiss"]
[EventCountry "HUN"]
[SourceTitle "playchess.com"]
[Source "ChessBase"]
[SourceQuality "1"]
[TimeControl "40/5400+30:1800+30"]

1. d4 {[%emt 0:01:03]} e6 {[%emt 0:00:26]} 2. c4 {[%emt 0:00:07]} Nf6 {[%emt 0:00:09]} 3. Nf3 {[%emt 0:00:07]} d5 {[%emt 0:00:12]} 4. Bg5 {[%emt 0:00:08]} Be7 {[%emt 0:01:06]} 5. e3 {[%emt 0:00:09]} O-O {[%emt 0:00:13]} 6. Qc2 {[%emt 0:00:07]} Nbd7 {[%emt 0:00:38]} 7. Nc3 {[%emt 0:01:45]} h6 {[%emt 0:00:06]} 8. cxd5 {[%emt 0:00:53]} exd5 {[%emt 0:03:50]} 9. Bf4 {[%emt 0:00:10]} c5 {[%emt 0:08:43]} 10. dxc5 {[%emt 0:13:16]} Nxc5 {[%emt 0:00:26]} 11. Be2 {[%emt 0:00:33]} Bg4 {[%emt 0:03:30]} 12. O-O {[%emt 0:03:20]} Rc8 {[%emt 0:05:47]} 13. Nd4 {[%emt 0:15:08]} Bxe2 {[%emt 0:03:11]} 14. Qxe2 {[%emt 0:00:44]} Nce4 {[%emt 0:11:59]} 15. Nxe4 {[%emt 0:12:28]} dxe4 {[%emt 0:02:34]} 16. Rfd1 {[%emt 0:00:07]} Qa5 {[%emt 0:01:22]} 17. Qb5 {[%emt 0:17:47]} Qxb5 {[%emt 0:01:32]} 18. Nxb5 {[%emt 0:01:39]} Rc2 {[%emt 0:08:06]} 19. Rab1 {[%emt 0:03:40]} Rfc8 {[%emt 0:04:40]} 20. h3 {[%emt 0:08:13]} a6 {[%emt 0:07:23]} 21. Nd4 {[%emt 0:01:10]} R2c5 {[%emt 0:05:41]} 22. Nb3 {[%emt 0:03:04]} Rc2 {[%emt 0:01:30]} 23. Nd4 {[%emt 0:01:30]} R2c5 {[%emt 0:06:45]} 24. Nb3 {[%emt 0:01:35]} Rc2 {[%emt 0:05:26]} 25. Be5 {[%emt 0:05:01]} R2c4 {[%emt 0:03:08]} 26. Nd2 {[%emt 0:03:50]} Rc2 {[%emt 0:01:51]} 27. Nb3 {[%emt 0:01:21]} R2c4 {[%emt 0:00:14]} 28. Kf1 {[%emt 0:02:13]} b5 {[%emt 0:01:12]} 29. Nd2 {[%emt 0:01:41]} Rc2 {[%emt 0:00:21]} 30. Nb3 {[%emt 0:00:05]} R2c4 {[%emt 0:01:18]} 31. a3 {[%emt 0:00:42]} h5 {[%emt 0:04:04]} 32. Nd2 {[%emt 0:00:38]} Rc2 {[%emt 0:00:02]} 33. Nb3 {[%emt 0:00:10]} R2c4 {[%emt 0:00:05]} 34. Bd6 {[%emt 0:01:01]} Kf8 {[%emt 0:01:35]} 35. Be5 {[%emt 0:00:50]} g6 {[%emt 0:03:01]} 36. Nd2 {[%emt 0:00:28]} Rc2 {[%emt 0:00:32]} 37. Nb3 {[%emt 0:00:08]} R2c4 {[%emt 0:00:05]} 1/2-1/2

[Event "HUN-ch U8-U18 2019"]
[Site "Balatonlelle"]
[Date "2019.06.24"]
[Round "4.6"]
[White "Baski, Barnabas"]
[Black "Dibusz, Domonkos"]
[Result "1/2-1/2"]
[ECO "A06"]
[WhiteElo "2108"]
[BlackElo "2067"]
[Annotator "NA"]
[PlyCount "80"]
[EventDate "2019.06.21"]
[EventType "swiss"]
[EventCountry "HUN"]
[SourceTitle "playchess.com"]
[Source "ChessBase"]
[SourceQuality "1"]
[TimeControl "40/5400+30:1800+30"]

1. Nf3 {[%emt 0:00:03]} d5 {[%emt 0:00:42]} 2. g3 {[%emt 0:00:06]} Nf6 {[%emt 0:00:21]} 3. Bg2 {[%emt 0:00:07]} c6 {[%emt 0:00:43]} 4. O-O {[%emt 0:00:09]} Bf5 {[%emt 0:00:06]} 5. d3 {[%emt 0:00:37]} e6 {[%emt 0:01:15]} 6. c4 {[%emt 0:00:17]} Nbd7 {[%emt 0:03:37]} 7. cxd5 {[%emt 0:00:18]} cxd5 {[%emt 0:03:15]} 8. Nc3 {[%emt 0:03:08]} Be7 {[%emt 0:01:33]} 9. Re1 {[%emt 0:03:43]} Bg6 {[%emt 0:07:12]} 10. h3 {[%emt 0:13:43]} O-O {[%emt 0:02:57]} 11. Bf4 {[%emt 0:05:14]} a6 {[%emt 0:07:20]} 12. e4 {[%emt 0:10:25]} dxe4 {[%emt 0:02:34]} 13. dxe4 {[%emt 0:01:07]} Bb4 {[%emt 0:17:39]} 14. Ne5 {[%emt 0:07:40]} Nxe5 {[%emt 0:00:34]} 15. Bxe5 {[%emt 0:04:30]} Nd7 {[%emt 0:00:17]} 16. Bd6 {[%emt 0:00:02]} Bxd6 {[%emt 0:05:19]} 17. Qxd6 {[%emt 0:12:40]} Nb6 {[%emt 0:01:53]} 18. Qxd8 {[%emt 0:05:08]} Rfxd8 {[%emt 0:09:47]} 19. e5 Nc4 20. b3 {[%emt 0:06:24]} Na5 {[%emt 0:01:58]} 21. b4 Nc6 {[%emt 0:01:21]} 22. Bxc6 {[%emt 0:12:18]} bxc6 {[%emt 0:00:03]} 23. Rad1 {[%emt 0:00:47]} Rdc8 {[%emt 0:04:47]} 24. Rd6 {[%emt 0:03:37]} Rab8 {[%emt 0:00:40]} 25. a3 {[%emt 0:00:43]} c5 {[%emt 0:00:29]} 26. bxc5 {[%emt 0:03:13]} Rxc5 {[%emt 0:01:18]} 27. Re3 {[%emt 0:01:46]} Ra5 {[%emt 0:04:41]} 28. Ne2 {[%emt 0:01:13]} Kf8 29. Nd4 Rd5 {[%emt 0:05:00]} 30. Rxd5 {[%emt 0:01:52]} exd5 {[%emt 0:00:03]} 31. f4 {[%emt 0:01:07]} Be4 {[%emt 0:00:22]} 32. Rb3 {[%emt 0:00:37]} Rc8 {[%emt 0:01:10]} 33. Kf2 {[%emt 0:00:14]} Rc4 {[%emt 0:01:42]} 34. Ke3 {[%emt 0:01:04]} a5 {[%emt 0:00:15]} 35. Ne2 {[%emt 0:00:43]} a4 {[%emt 0:01:10]} 36. Rb8+ Ke7 {[%emt 0:00:07]} 37. Rb7+ {[%emt 0:02:09]} Ke8 38. Rb8+ {[%emt 0:00:10]} Ke7 {[%emt 0:00:34]} 39. Rb7+ {[%emt 0:00:07]} Ke8 {[%emt 0:00:00]} 40. Rb8+ Ke7 1/2-1/2

[Event "HUN-ch U8-U18 2019"]
[Site "Balatonlelle"]
[Date "2019.06.24"]
[Round "4.6"]
[White "Molnar, Dalma Reka"]
[Black "Szarvas, Nora"]
[Result "0-1"]
[ECO "C64"]
[WhiteElo "1139"]
[BlackElo "1258"]
[Annotator "NA"]
[PlyCount "126"]
[EventDate "2019.06.21"]
[EventType "swiss"]
[EventCountry "HUN"]
[SourceTitle "playchess.com"]
[Source "ChessBase"]
[SourceQuality "1"]
[TimeControl "40/5400+30:1800+30"]

1. e4 {[%emt 0:00:02]} e5 {[%emt 0:00:08]} 2. Nf3 {[%emt 0:00:09]} Nc6 {[%emt 0:00:09]} 3. Bb5 {[%emt 0:00:11]} Bc5 {[%emt 0:00:12]} 4. c3 {[%emt 0:00:18]} a6 {[%emt 0:00:35]} 5. Ba4 {[%emt 0:00:16]} b5 {[%emt 0:03:02]} 6. Bb3 {[%emt 0:00:13]} Nf6 {[%emt 0:00:20]} 7. d3 {[%emt 0:02:21]} h6 {[%emt 0:00:32]} 8. O-O {[%emt 0:00:50]} d6 {[%emt 0:00:25]} 9. h3 {[%emt 0:00:47]} Qe7 {[%emt 0:00:45]} 10. Be3 {[%emt 0:00:58]} Ba7 {[%emt 0:04:43]} 11. Nbd2 {[%emt 0:01:27]} Be6 {[%emt 0:03:25]} 12. d4 {[%emt 0:02:41]} exd4 {[%emt 0:01:21]} 13. cxd4 {[%emt 0:00:42]} Bxb3 {[%emt 0:02:11]} 14. Qxb3 {[%emt 0:01:00]} O-O {[%emt 0:02:34]} 15. Rac1 {[%emt 0:02:59]} Nd8 {[%emt 0:02:47]} 16. Qd3 {[%emt 0:02:05]} Bb6 {[%emt 0:02:10]} 17. d5 {[%emt 0:02:10]} Re8 {[%emt 0:01:43]} 18. Bxb6 {[%emt 0:01:09]} cxb6 {[%emt 0:00:24]} 19. Rfe1 {[%emt 0:00:18]} Qb7 {[%emt 0:05:57]} 20. Rc2 {[%emt 0:02:19]} Rc8 {[%emt 0:01:48]} 21. Rec1 {[%emt 0:00:46]} Rxc2 {[%emt 0:00:33]} 22. Rxc2 {[%emt 0:00:11]} Qe7 {[%emt 0:01:13]} 23. e5 {[%emt 0:02:58]} dxe5 {[%emt 0:00:41]} 24. d6 {[%emt 0:00:21]} Qe6 {[%emt 0:01:48]} 25. Rc7 {[%emt 0:02:23]} e4 {[%emt 0:01:40]} 26. Nxe4 {[%emt 0:02:04]} Qxe4 {[%emt 0:01:05]} 27. Qxe4 {[%emt 0:00:30]} Rxe4 {[%emt 0:00:56]} 28. d7 {[%emt 0:00:09]} Re7 {[%emt 0:00:15]} 29. Ra7 {[%emt 0:02:42]} Rxd7 {[%emt 0:00:27]} 30. Rxa6 {[%emt 0:00:16]} Nd5 {[%emt 0:00:26]} 31. Nd4 {[%emt 0:00:46]} Nb4 {[%emt 0:00:21]} 32. Rxb6 {[%emt 0:00:20]} Rxd4 {[%emt 0:00:14]} 33. Rxb5 {[%emt 0:00:38]} Nxa2 {[%emt 0:00:16]} 34. Ra5 {[%emt 0:00:43]} Nb4 {[%emt 0:00:23]} 35. Ra1 {[%emt 0:01:10]} Nc2 {[%emt 0:00:39]} 36. Rb1 {[%emt 0:00:12]} Re4 {[%emt 0:01:32]} 37. b3 {[%emt 0:00:44]} Re1+ {[%emt 0:00:13]} 38. Rxe1 {[%emt 0:00:07]} Nxe1 {[%emt 0:00:05]} 39. b4 {[%emt 0:00:06]} Nb7 {[%emt 0:00:05]} 40. Kf1 {[%emt 0:00:00]} Nd3 {[%emt 0:00:00]} 41. b5 {[%emt 0:00:15]} Kf8 {[%emt 0:00:54]} 42. Ke2 {[%emt 0:00:09]} Nf4+ {[%emt 0:00:08]} 43. Kd2 {[%emt 0:00:12]} Nxg2 {[%emt 0:00:27]} 44. Kc3 {[%emt 0:00:06]} Ke7 {[%emt 0:00:12]} 45. Kc4 {[%emt 0:00:07]} Kd6 {[%emt 0:00:13]} 46. Kb4 {[%emt 0:00:52]} Nf4 {[%emt 0:00:18]} 47. h4 {[%emt 0:00:24]} Ng2 {[%emt 0:00:10]} 48. h5 {[%emt 0:00:08]} Nf4 {[%emt 0:00:00]} 49. Kc4 {[%emt 0:00:14]} Nxh5 {[%emt 0:00:19]} 50. Kd4 {[%emt 0:00:14]} f5 {[%emt 0:00:12]} 51. Ke3 {[%emt 0:00:20]} g5 {[%emt 0:00:17]} 52. Kf3 {[%emt 0:00:19]} g4+ {[%emt 0:00:10]} 53. Kg2 {[%emt 0:00:11]} Kc5 {[%emt 0:00:22]} 54. f3 {[%emt 0:00:22]} Kd5 {[%emt 0:00:23]} 55. fxg4 {[%emt 0:00:15]} fxg4 {[%emt 0:00:09]} 56. Kf2 {[%emt 0:00:05]} Ke4 {[%emt 0:00:08]} 57. Ke2 {[%emt 0:00:11]} g3 {[%emt 0:00:09]} 58. Kf1 {[%emt 0:00:10]} Kf3 {[%emt 0:00:08]} 59. b6 {[%emt 0:00:27]} g2+ {[%emt 0:00:14]} 60. Kg1 {[%emt 0:00:06]} Nf6 {[%emt 0:00:16]} 61. Kh2 {[%emt 0:00:22]} Kf2 {[%emt 0:00:08]} 62. Kh3 {[%emt 0:00:21]} g1=Q {[%emt 0:00:17]} 63. Kh4 {[%emt 0:00:09]} Qg4# {[%emt 0:00:07]} 0-1

[Event "HUN-ch U8-U18 2019"]
[Site "Balatonlelle"]
[Date "2019.06.24"]
[Round "4.7"]
[White "Tapodi, Norman Lajos"]
[Black "Leszko, Bence"]
[Result "1-0"]
[ECO "A13"]
[WhiteElo "2043"]
[BlackElo "2135"]
[Annotator "NA"]
[PlyCount "125"]
[EventDate "2019.06.21"]
[EventType "swiss"]
[EventCountry "HUN"]
[SourceTitle "playchess.com"]
[Source "ChessBase"]
[SourceQuality "1"]
[TimeControl "40/5400+30:1800+30"]

1. c4 {[%emt 0:00:03]} e6 {[%emt 0:00:16]} 2. g3 {[%emt 0:00:11]} Nf6 {[%emt 0:00:10]} 3. Bg2 {[%emt 0:00:12]} d5 {[%emt 0:00:06]} 4. Nf3 {[%emt 0:00:19]} d4 {[%emt 0:00:09]} 5. O-O {[%emt 0:00:13]} c5 {[%emt 0:00:05]} 6. e3 {[%emt 0:00:20]} Nc6 {[%emt 0:00:05]} 7. exd4 {[%emt 0:00:22]} cxd4 {[%emt 0:00:07]} 8. d3 {[%emt 0:00:11]} Bd6 {[%emt 0:00:06]} 9. Bg5 {[%emt 0:00:30]} h6 {[%emt 0:00:05]} 10. Bxf6 {[%emt 0:00:47]} Qxf6 {[%emt 0:00:07]} 11. Nbd2 {[%emt 0:00:40]} Qe7 {[%emt 0:00:05]} 12. a3 {[%emt 0:03:21]} a5 {[%emt 0:00:04]} 13. Rc1 {[%emt 0:03:07]} O-O {[%emt 0:01:38]} 14. Ne4 {[%emt 0:01:39]} Bc7 {[%emt 0:00:27]} 15. c5 {[%emt 0:02:23]} f5 {[%emt 0:02:31]} 16. Ned2 {[%emt 0:01:46]} e5 {[%emt 0:00:13]} 17. Re1 {[%emt 0:18:12]} Qf7 {[%emt 0:06:54]} 18. Nc4 {[%emt 0:15:01]} Re8 {[%emt 0:00:49]} 19. b4 {[%emt 0:11:59]} axb4 {[%emt 0:05:51]} 20. axb4 {[%emt 0:00:53]} e4 {[%emt 0:17:35]} 21. dxe4 {[%emt 0:02:15]} fxe4 {[%emt 0:11:54]} 22. Nxd4 {[%emt 0:04:27]} Ra2 {[%emt 0:00:18]} 23. Rf1 {[%emt 0:12:37]} Nxd4 {[%emt 0:22:44]} 24. Qxd4 {[%emt 0:03:13]} Rd8 {[%emt 0:01:15]} 25. Nd6 {[%emt 0:03:08]} Bxd6 {[%emt 0:00:12]} 26. cxd6 {[%emt 0:00:56]} Ra6 {[%emt 0:00:14]} 27. Bxe4 {[%emt 0:02:25]} Be6 {[%emt 0:01:15]} 28. Rfd1 {[%emt 0:03:23]} Qd7 {[%emt 0:02:13]} 29. Rc7 {[%emt 0:05:02]} Qxc7 {[%emt 0:00:13]} 30. dxc7 {[%emt 0:00:56]} Rxd4 {[%emt 0:00:05]} 31. Rxd4 {[%emt 0:00:28]} Ra1+ {[%emt 0:01:14]} 32. Kg2 {[%emt 0:00:19]} Rc1 {[%emt 0:00:05]} 33. Bxb7 {[%emt 0:01:01]} Rxc7 {[%emt 0:00:02]} 34. Bd5 {[%emt 0:00:37]} Bxd5+ {[%emt 0:00:46]} 35. Rxd5 {[%emt 0:00:06]} Rc4 {[%emt 0:01:26]} 36. Rb5 {[%emt 0:00:24]} Kf7 {[%emt 0:00:09]} 37. Rb7+ {[%emt 0:00:11]} Kg6 {[%emt 0:00:11]} 38. b5 {[%emt 0:00:05]} Rb4 {[%emt 0:00:03]} 39. b6 {[%emt 0:00:13]} Rb3 {[%emt 0:00:06]} 40. Rb8 {[%emt 0:00:00]} Rb4 {[%emt 0:00:00]} 41. b7 {[%emt 0:03:20]} Kh5 {[%emt 0:00:40]} 42. h3 {[%emt 0:01:13]} Kg6 {[%emt 0:00:13]} 43. g4 Rb3 44. h4 {[%emt 0:04:56]} Rb4 {[%emt 0:04:14]} 45. Kg3 {[%emt 0:01:35]} Rb3+ {[%emt 0:00:19]} 46. f3 {[%emt 0:00:29]} Rb1 {[%emt 0:00:55]} 47. f4 {[%emt 0:05:47]} Rb3+ {[%emt 0:01:14]} 48. Kf2 {[%emt 0:00:38]} Rb4 {[%emt 0:02:03]} 49. Ke3 {[%emt 0:00:52]} Rb3+ {[%emt 0:02:12]} 50. Kd2 {[%emt 0:04:48]} Rb2+ {[%emt 0:00:38]} 51. Kc3 {[%emt 0:01:23]} Rb1 {[%emt 0:00:09]} 52. f5+ {[%emt 0:00:58]} Kh7 {[%emt 0:00:57]} 53. g5 hxg5 {[%emt 0:00:10]} 54. hxg5 {[%emt 0:01:40]} g6 {[%emt 0:00:08]} 55. f6 {[%emt 0:00:14]} Rc1+ {[%emt 0:00:35]} 56. Kd2 {[%emt 0:00:09]} Rd1+ {[%emt 0:00:14]} 57. Ke3 {[%emt 0:02:15]} Re1+ {[%emt 0:00:14]} 58. Kd4 {[%emt 0:00:42]} Rd1+ {[%emt 0:00:15]} 59. Ke5 {[%emt 0:02:30]} Rd5+ {[%emt 0:02:13]} 60. Ke6 {[%emt 0:02:20]} Rd6+ {[%emt 0:00:07]} 61. Ke7 {[%emt 0:01:41]} Rd7+ {[%emt 0:06:24]} 62. Ke8 {[%emt 0:02:20]} Rf7 {[%emt 0:02:13]} 63. Rd8 {[%emt 0:01:46]} 1-0